bitfinex/quotes_BTCUSD_20241001
["timestamp","ask_amount","ask_price","bid_price","bid_amount"]
[1727825534316,0.04407379,60873.0,60872.0,0.131423]
[1727825535016,0.04407379,60873.0,60872.0,0.32726923]
[1727825535515,0.02560856,60873.0,60872.0,0.31826923]
[1727825535749,0.02560856,60873.0,60872.0,0.32526923]
[1727825537123,0.02560856,60873.0,60872.0,0.31826923]
[1727825537357,0.02560856,60873.0,60872.0,0.33126923]
[1727825537860,0.02560856,60873.0,60872.0,0.31826923]
[1727825538284,0.02560856,60873.0,60872.0,0.33226923]
[1727825539708,0.0257475,60874.0,60872.0,0.20084623]
[1727825539947,0.0257475,60874.0,60873.0,0.131421]
[1727825540869,0.0257475,60874.0,60873.0,0.24615385]
[1727825541131,0.0257475,60874.0,60873.0,0.131421]
[1727825541911,0.0257475,60874.0,60873.0,0.145421]
[1727825543083,0.0257475,60874.0,60873.0,0.131421]
[1727825543312,0.0257475,60874.0,60873.0,0.145421]
[1727825544003,0.0791,60881.0,60872.0,0.18684623]
[1727825544249,0.0791,60881.0,60880.0,0.131406]
[1727825544463,0.09763859,60881.0,60880.0,0.131406]
[1727825545361,0.12724657,60881.0,60880.0,0.131406]
[1727825545872,0.09763859,60881.0,60880.0,0.131406]
[1727825546535,0.12720307,60881.0,60880.0,0.131406]
[1727825546756,0.12720307,60881.0,60880.0,0.138406]
[1727825547885,0.0791,60881.0,60880.0,0.138406]
[1727825548104,0.09755073,60881.0,60880.0,0.138406]
[1727825548323,0.1270719,60881.0,60880.0,0.138406]
[1727825549723,0.1270719,60881.0,60880.0,0.007]
[1727825550858,0.14470825,60881.0,60880.0,0.138406]
[1727825551054,0.06560825,60881.0,60880.0,0.138406]
[1727825551295,0.01845073,60881.0,60880.0,0.138406]
[1727825551493,0.001638,60882.0,60881.0,0.131403]
[1727825551721,0.001638,60882.0,60881.0,0.31824923]
[1727825552869,0.02019592,60882.0,60881.0,0.31824923]
[1727825553777,0.02019592,60882.0,60881.0,0.33224923]
[1727825554014,0.001638,60882.0,60881.0,0.33224923]
[1727825554255,0.02020293,60882.0,60881.0,0.33224923]
[1727825555616,0.02020293,60882.0,60881.0,0.31824923]
[1727825556058,0.02020293,60882.0,60881.0,0.33224923]
[1727825557456,0.04994503,60882.0,60881.0,0.33224923]
[1727825558120,0.04994503,60882.0,60881.0,0.33424923]
[1727825559507,0.04994503,60882.0,60881.0,0.36719923]
[1727825559984,0.04994503,60882.0,60881.0,0.53189368]
[1727825559985,0.02020293,60882.0,60881.0,0.53189368]
[1727825560213,0.02020293,60882.0,60881.0,0.61789368]
[1727825560448,0.02020293,60882.0,60881.0,0.72889368]
[1727825561260,0.0201739,60882.0,60881.0,0.72889368]
[1727825561478,0.0201739,60882.0,60881.0,0.75689368]
[1727825561699,0.0201739,60882.0,60881.0,0.74289368]
[1727825561924,0.03871274,60882.0,60881.0,0.74289368]
[1727825562153,0.03871274,60882.0,60881.0,0.75689368]
[1727825562623,0.03871274,60882.0,60881.0,0.74289368]
[1727825562844,0.03871274,60882.0,60881.0,0.75689368]
[1727825563297,0.03871274,60882.0,60881.0,0.73189368]
[1727825563523,0.02017684,60882.0,60881.0,0.56719923]
[1727825564700,0.02015579,60882.0,60881.0,0.56719923]
[1727825565209,0.02015579,60882.0,60881.0,0.56919923]
[1727825565872,0.02015579,60882.0,60881.0,0.56719923]
[1727825566781,0.04973847,60882.0,60881.0,0.56719923]
[1727825567011,0.04973847,60882.0,60881.0,0.56219923]
[1727825567252,0.04973847,60882.0,60881.0,0.178353]
[1727825567497,0.04973847,60882.0,60881.0,0.145403]
[1727825568182,0.04973847,60882.0,60881.0,0.131403]
[1727825568385,0.06725505,60882.0,60881.0,0.145403]
[1727825568614,0.04979178,60882.0,60881.0,0.145403]
[1727825568854,0.06725566,60882.0,60881.0,0.145403]
[1727825569076,0.04979178,60882.0,60881.0,0.131403]
[1727825569306,0.04979178,60882.0,60881.0,0.144403]
[1727825569743,0.04979178,60882.0,60881.0,0.131403]
[1727825570423,0.04979178,60882.0,60881.0,0.31824923]
[1727825571373,0.04979178,60882.0,60881.0,0.33224923]
[1727825571837,0.04979178,60882.0,60881.0,0.31824923]
[1727825572067,0.04979178,60882.0,60881.0,0.33224923]
[1727825573500,0.04979178,60882.0,60881.0,0.145403]
[1727825573723,0.06727026,60882.0,60881.0,0.145403]
[1727825573993,0.06727026,60882.0,60881.0,0.33224923]
[1727825574212,0.04979178,60882.0,60881.0,0.145403]
[1727825574905,0.06722982,60882.0,60881.0,0.145403]
[1727825577264,0.06724039,60882.0,60881.0,0.145403]
[1727825578408,0.01908661,60882.0,60881.0,0.145403]
[1727825578645,0.03759662,60882.0,60881.0,0.145403]
[1727825578868,0.06721264,60882.0,60881.0,0.145403]
[1727825581022,0.06728356,60882.0,60881.0,0.145403]
[1727825581739,0.2002253,60882.0,60881.0,0.014]
[1727825581972,0.2757253,60882.0,60881.0,0.014]
[1727825582408,0.32496609,60882.0,60881.0,0.014]
[1727825582635,0.32342535,60882.0,60881.0,0.014]
[1727825583524,0.32342535,60882.0,60875.0,0.24615385]
[1727825583525,0.131412,60877.0,60875.0,0.24615385]
[1727825583793,0.06564556,60876.0,60875.0,0.37756985]
[1727825584257,0.06564556,60876.0,60875.0,0.131416]
[1727825584482,0.0481501,60876.0,60875.0,0.42198857]
[1727825584698,0.0481501,60876.0,60875.0,0.41870346]
[1727825584699,0.01851927,60876.0,60875.0,0.41870346]
[1727825584917,0.02574677,60879.0,60878.0,0.16436]
[1727825585155,0.04424509,60879.0,60878.0,0.35449109]
[1727825585397,0.02574677,60879.0,60878.0,0.92429199]
[1727825585638,0.001638,60886.0,60885.0,0.133395]
[1727825585858,0.001638,60886.0,60885.0,0.62288568]
[1727825586321,0.001638,60886.0,60885.0,0.62088568]
[1727825589154,0.001638,60886.0,60885.0,0.63488568]
[1727825590798,0.001638,60886.0,60885.0,0.47019123]
[1727825591973,0.001638,60886.0,60885.0,0.278345]
[1727825592195,0.001638,60886.0,60885.0,0.178345]
[1727825592647,0.01993966,60886.0,60885.0,0.178345]
[1727825593112,0.01993966,60886.0,60885.0,0.04695]
[1727825593645,0.0201147,60886.0,60885.0,0.178345]
[1727825593874,0.0201147,60886.0,60885.0,0.164345]
[1727825594120,0.0201147,60886.0,60885.0,0.145395]
[1727825594352,0.06711385,60886.0,60885.0,0.145395]
[1727825595267,0.06711385,60886.0,60885.0,0.131395]
[1727825595507,0.09285696,60886.0,60885.0,0.131395]
[1727825595734,0.09285696,60886.0,60885.0,0.142395]
[1727825595954,0.06711385,60886.0,60885.0,0.142395]
[1727825596178,0.06711385,60886.0,60885.0,0.32924123]
[1727825596408,0.0201147,60886.0,60885.0,0.32924123]
[1727825596665,0.0201147,60886.0,60885.0,0.36217123]
[1727825596873,0.001638,60886.0,60885.0,0.36217123]
[1727825597124,0.02009208,60886.0,60885.0,0.35117123]
[1727825597584,0.02009208,60886.0,60885.0,0.36417123]
[1727825598043,0.02009208,60886.0,60885.0,0.35117123]
[1727825598260,0.02009208,60886.0,60885.0,0.36517123]
[1727825599249,0.03843053,60886.0,60885.0,0.36517123]
[1727825599453,0.02009208,60886.0,60885.0,0.36517123]
[1727825600799,0.01999012,60886.0,60885.0,0.36517123]
[1727825601242,0.001638,60886.0,60885.0,0.36517123]
[1727825601650,0.02002212,60886.0,60885.0,0.36517123]
[1727825601849,0.001638,60886.0,60885.0,0.36517123]
[1727825602031,0.0200517,60886.0,60885.0,0.36517123]
[1727825602908,0.001638,60886.0,60885.0,0.36517123]
[1727825603146,0.02002706,60886.0,60885.0,0.36517123]
[1727825603379,0.02002698,60886.0,60885.0,0.36517123]
[1727825604243,0.001638,60886.0,60885.0,0.36517123]
[1727825606322,0.001638,60886.0,60885.0,0.178325]
[1727825606571,0.01998349,60886.0,60885.0,0.178325]
[1727825606804,0.01998348,60886.0,60885.0,0.178325]
[1727825607324,0.01998348,60886.0,60885.0,0.145395]
[1727825607515,0.06674769,60886.0,60885.0,0.145395]
[1727825608234,0.001638,60886.0,60882.0,0.132219]
[1727825608456,0.001638,60886.0,60882.0,0.000818]
[1727825608457,0.131399,60883.0,60882.0,0.000818]
[1727825608703,0.131398,60884.0,60882.0,0.000818]
[1727825608919,0.06702833,60883.0,60882.0,0.000818]
[1727825609618,0.3008635,60883.0,60882.0,0.000818]
[1727825610063,0.3008577,60883.0,60882.0,0.000818]
[1727825610292,0.35010429,60883.0,60882.0,0.000818]
[1727825610513,0.29931696,60883.0,60882.0,0.011818]
[1727825610733,0.27522153,60883.0,60882.0,0.011818]
[1727825610999,0.35010429,60883.0,60882.0,0.000818]
[1727825611191,0.06548179,60883.0,60882.0,0.137219]
[1727825611914,0.06548179,60883.0,60882.0,0.132219]
[1727825612674,0.19688079,60883.0,60882.0,0.000818]
[1727825612902,0.06548179,60883.0,60882.0,0.000818]
[1727825613135,0.14190779,60883.0,60882.0,0.000818]
[1727825613360,0.14190779,60883.0,60882.0,0.006818]
[1727825613583,0.06702503,60883.0,60882.0,0.006818]
[1727825613817,0.06702503,60883.0,60882.0,0.000818]
[1727825614044,0.06702503,60883.0,60882.0,0.005818]
[1727825614509,0.06548429,60883.0,60882.0,0.132219]
[1727825614759,0.06712029,60883.0,60882.0,0.132219]
[1727825614979,0.06712029,60883.0,60882.0,0.137219]
[1727825616332,0.001636,60883.0,60882.0,0.132219]
[1727825616564,0.06680314,60883.0,60882.0,0.132219]
[1727825616801,0.06680314,60883.0,60882.0,0.31906523]
[1727825617019,0.06680314,60883.0,60882.0,0.132219]
[1727825617248,0.06680314,60883.0,60882.0,0.137219]
[1727825617746,0.06680314,60883.0,60882.0,0.132219]
[1727825617992,0.06680314,60883.0,60882.0,0.140219]
[1727825618207,0.06680314,60883.0,60882.0,0.008818]
[1727825619360,0.06680314,60883.0,60882.0,0.000818]
[1727825619578,0.06680314,60883.0,60882.0,0.011818]
[1727825620036,0.06680314,60883.0,60882.0,0.132219]
[1727825620691,0.06680314,60883.0,60882.0,0.140219]
[1727825621343,0.06680314,60883.0,60882.0,0.132219]
[1727825622716,0.001636,60883.0,60882.0,0.132219]
[1727825622924,0.06755737,60883.0,60882.0,0.132219]
[1727825623138,0.06755737,60883.0,60882.0,0.139219]
[1727825624459,0.06755737,60883.0,60882.0,0.132219]
[1727825624675,0.06755737,60883.0,60882.0,0.140219]
[1727825625814,0.04997734,60883.0,60882.0,0.140219]
[1727825626247,0.06739881,60883.0,60882.0,0.140219]
[1727825628015,0.09314368,60883.0,60882.0,0.140219]
[1727825629139,0.25410134,60883.0,60882.0,0.008818]
[1727825629333,0.35303374,60883.0,60882.0,0.008818]
[1727825629535,0.35149097,60883.0,60882.0,0.008818]
[1727825629749,0.30228449,60883.0,60882.0,0.008818]
[1727825629959,0.35303171,60883.0,60882.0,0.008818]
[1727825630205,0.35149097,60883.0,60882.0,0.008818]
[1727825630443,0.30243688,60883.0,60882.0,0.008818]
[1727825630649,0.30397762,60883.0,60882.0,0.008818]
[1727825631993,0.27823275,60883.0,60882.0,0.008818]
[1727825633557,0.32743923,60883.0,60882.0,0.008818]
[1727825633770,0.32589849,60883.0,60882.0,0.008818]
[1727825635085,0.27669201,60883.0,60882.0,0.008818]
[1727825635298,0.35318644,60883.0,60882.0,0.008818]
[1727825635546,0.23668221,60883.0,60882.0,0.008818]
[1727825635811,0.30420105,60883.0,60882.0,0.008818]
[1727825636676,0.35340753,60883.0,60882.0,0.008818]
[1727825636888,0.35186679,60883.0,60882.0,0.008818]
[1727825637539,0.30266031,60883.0,60882.0,0.008818]
[1727825637751,0.30420105,60883.0,60882.0,0.008818]
[1727825638896,0.11262727,60883.0,60882.0,0.008818]
[1727825639155,0.09310823,60883.0,60882.0,0.140219]
[1727825639591,0.06736102,60883.0,60882.0,0.140219]
[1727825640900,0.06736102,60883.0,60882.0,0.32706523]
[1727825642261,0.06736102,60883.0,60882.0,0.140219]
[1727825642476,0.09310568,60883.0,60882.0,0.140219]
[1727825642940,0.09310568,60883.0,60882.0,0.222619]
[1727825643155,0.07562275,60883.0,60882.0,0.222619]
[1727825643388,0.04593531,60883.0,60882.0,0.222619]
[1727825643653,0.02019065,60883.0,60882.0,0.315119]
[1727825643868,0.02019065,60883.0,60882.0,0.307119]
[1727825644081,0.02019065,60883.0,60882.0,0.315119]
[1727825644514,0.001636,60883.0,60882.0,0.307119]
[1727825644737,0.0201349,60883.0,60882.0,0.307119]
[1727825645518,0.001636,60883.0,60882.0,0.307119]
[1727825645747,0.001636,60883.0,60882.0,0.321119]
[1727825646452,0.001636,60883.0,60882.0,0.61381345]
[1727825646462,0.001638,60895.0,60885.0,0.007]
[1727825646674,0.001638,60895.0,60883.0,0.123]
[1727825646675,0.001638,60895.0,60894.0,0.49312123]
[1727825647627,0.001638,60895.0,60894.0,0.65781568]
[1727825647851,0.001638,60895.0,60894.0,0.75781568]
[1727825648071,0.001638,60895.0,60894.0,0.76281568]
[1727825648787,0.001638,60895.0,60894.0,0.78581568]
[1727825649248,0.001638,60895.0,60894.0,0.79081568]
[1727825649697,0.0493689,60907.0,60906.0,0.49309523]
[1727825650170,0.001638,60915.0,60914.0,0.131332]
[1727825650417,0.001638,60915.0,60914.0,0.223832]
[1727825650694,0.001638,60915.0,60914.0,0.30802147]
[1727825651833,0.001638,60915.0,60914.0,0.50564592]
[1727825652048,0.001638,60915.0,60914.0,0.50385645]
[1727825652521,0.001638,60915.0,60914.0,0.52232204]
[1727825653012,0.001638,60915.0,60914.0,0.50932204]
[1727825653262,0.001638,60915.0,60914.0,0.52532204]
[1727825653716,0.001638,60915.0,60914.0,0.51132204]
[1727825654155,0.001638,60915.0,60914.0,0.52532204]
[1727825654845,0.001638,60915.0,60914.0,0.64832204]
[1727825655058,0.001638,60915.0,60914.0,0.65332204]
[1727825658481,0.001638,60915.0,60914.0,0.63932204]
[1727825658945,0.001638,60915.0,60914.0,0.65332204]
[1727825659389,0.001638,60915.0,60914.0,0.63932204]
[1727825659610,0.001638,60915.0,60914.0,0.65332204]
[1727825659827,0.0012274,60915.0,60914.0,0.65332204]
[1727825663260,0.001638,60919.0,60914.0,0.65332204]
[1727825663261,0.001636,60927.0,60926.0,0.171236]
[1727825663513,0.001636,60942.0,60927.0,0.171234]
[1727825663758,0.001636,60942.0,60933.0,0.166221]
[1727825663993,0.0490356,60939.0,60933.0,0.6210363]
[1727825664212,0.001636,60942.0,60933.0,0.64576168]
[1727825664213,0.00164,60936.0,60933.0,0.64576168]
[1727825664495,0.001636,60942.0,60941.0,0.236274]
[1727825664706,1.279536,60942.0,60941.0,0.64374468]
[1727825664946,1.279536,60942.0,60941.0,0.74544468]
[1727825665179,1.279536,60942.0,60941.0,0.78271564]
[1727825665417,0.0493475,60949.0,60941.0,0.78271564]
[1727825665418,0.0493475,60949.0,60948.0,0.007]
[1727825665675,0.0493475,60949.0,60948.0,0.64572968]
[1727825665901,0.24615385,60957.0,60955.0,0.164174]
[1727825666129,0.24615385,60957.0,60955.0,0.35102023]
[1727825666362,0.29535515,60964.0,60955.0,0.35102023]
[1727825666363,0.29535515,60964.0,60955.0,0.131244]
[1727825666619,0.0822,60960.0,60955.0,0.131244]
[1727825667798,0.0822,60960.0,60955.0,0.145244]
[1727825668264,0.0492013,60964.0,60955.0,0.49678468]
[1727825668501,0.0492013,60964.0,60955.0,0.48278468]
[1727825668767,0.0492013,60964.0,60955.0,0.30793845]
[1727825668975,0.02571227,60958.0,60955.0,0.30793845]
[1727825669191,0.02571227,60958.0,60955.0,0.29593845]
[1727825669444,0.02571227,60958.0,60955.0,0.30993845]
[1727825669883,0.02571227,60958.0,60955.0,0.34286845]
[1727825670329,0.081734,60956.0,60955.0,0.014]
[1727825670562,0.081734,60956.0,60955.0,0.145244]
[1727825670563,0.09978288,60956.0,60955.0,0.145244]
[1727825670846,0.09978288,60956.0,60955.0,0.131244]
[1727825671084,0.09978288,60956.0,60955.0,0.014]
[1727825671568,0.23282262,60956.0,60955.0,0.014]
[1727825671805,0.23282262,60956.0,60950.0,0.131254]
[1727825672034,0.01830588,60955.0,60953.0,0.24615385]
[1727825672273,0.01830588,60954.0,60952.0,0.131248]
[1727825672492,0.01830588,60953.0,60952.0,0.131248]
[1727825673141,0.01830588,60953.0,60950.0,0.393762]
[1727825673375,0.01830588,60952.0,60951.0,0.131252]
[1727825674477,0.01830588,60952.0,60947.0,0.262521]
[1727825674771,0.00154074,60955.0,60951.0,0.136252]
[1727825675196,0.04780893,60954.0,60951.0,0.136252]
[1727825675419,0.01838805,60954.0,60951.0,0.131252]
[1727825675639,0.00154074,60955.0,60951.0,0.131252]
[1727825675640,0.0478306,60953.0,60951.0,0.131252]
[1727825675888,0.00154074,60955.0,60951.0,0.131252]
[1727825675889,0.0478306,60952.0,60951.0,0.131252]
[1727825677692,0.0478306,60952.0,60951.0,0.134252]
[1727825677917,0.0478306,60952.0,60951.0,0.003]
[1727825678187,0.0478306,60952.0,60951.0,0.131252]
[1727825678411,0.02944009,60952.0,60951.0,0.131252]
[1727825678892,0.01840006,60952.0,60951.0,0.138252]
[1727825679110,0.01840006,60952.0,60951.0,0.30294645]
[1727825679348,0.01840006,60952.0,60951.0,0.32594645]
[1727825679569,0.000818,60955.0,60954.0,0.131246]
[1727825679828,0.01934027,60955.0,60954.0,0.51571668]
[1727825680050,0.01934013,60955.0,60954.0,0.62071668]
[1727825680316,0.01934013,60955.0,60954.0,0.71391668]
[1727825680545,0.000818,60955.0,60954.0,0.73891668]
[1727825681222,0.000818,60955.0,60954.0,0.73691668]
[1727825681463,0.000818,60955.0,60954.0,0.75091668]
[1727825682656,0.000818,60955.0,60954.0,0.75642415]
[1727825682884,0.000818,60955.0,60954.0,0.75842415]
[1727825683094,0.000818,60955.0,60954.0,0.75642415]
[1727825684977,0.01935801,60955.0,60954.0,0.75642415]
[1727825685208,0.01935798,60955.0,60954.0,0.75642415]
[1727825688207,0.01936139,60955.0,60954.0,0.75642415]
[1727825688454,0.01936139,60955.0,60954.0,0.75842415]
[1727825688655,0.01936139,60955.0,60954.0,0.75642415]
[1727825689529,0.01936139,60955.0,60954.0,0.75842415]
[1727825693724,0.01936139,60955.0,60954.0,0.75642415]
[1727825693969,0.04906667,60955.0,60954.0,0.28368347]
[1727825694402,0.000818,60955.0,60954.0,0.28368347]
[1727825694652,0.04909663,60955.0,60954.0,0.18368347]
[1727825694880,0.13089663,60955.0,60954.0,0.145246]
[1727825695760,0.13089663,60955.0,60954.0,0.131246]
[1727825696209,0.13089663,60955.0,60954.0,0.138246]
[1727825697570,0.082618,60955.0,60954.0,0.138246]
[1727825697844,0.13089522,60955.0,60954.0,0.138246]
[1727825702307,0.04909522,60955.0,60954.0,0.38439985]
[1727825702571,0.04909522,60955.0,60954.0,0.138246]
[1727825702782,0.04909522,60955.0,60954.0,0.45887045]
[1727825702783,0.01938616,60955.0,60954.0,0.45887045]
[1727825703017,0.000818,60955.0,60954.0,0.46087045]
[1727825703234,0.000818,60955.0,60954.0,0.45387045]
[1727825704331,0.000818,60955.0,60954.0,0.5592634]
[1727825705189,0.000818,60955.0,60954.0,0.5662634]
[1727825705681,0.000818,60955.0,60954.0,0.5592634]
[1727825705884,0.000818,60955.0,60954.0,0.76010963]
[1727825706548,0.000818,60955.0,60954.0,0.5732634]
[1727825706794,0.000818,60955.0,60954.0,0.76010963]
[1727825709239,0.000818,60955.0,60954.0,0.5712634]
[1727825709511,0.000818,60955.0,60954.0,0.5482634]
[1727825710684,0.000818,60955.0,60954.0,1.03350684]
[1727825710874,0.000818,60955.0,60954.0,0.89115299]
[1727825711088,0.000818,60955.0,60954.0,0.89315299]
[1727825711779,0.000818,60955.0,60954.0,0.84090963]
[1727825712269,0.000818,60955.0,60954.0,0.89315299]
[1727825712506,0.000818,60955.0,60954.0,0.84090963]
[1727825715905,0.001634,60956.0,60955.0,0.294174]
[1727825716128,0.001634,60956.0,60955.0,0.45886845]
[1727825716809,0.001634,60956.0,60955.0,0.45686845]
[1727825717438,0.001634,60956.0,60955.0,0.47086845]
[1727825718134,0.001634,60956.0,60955.0,0.45886845]
[1727825718569,0.001634,60956.0,60955.0,0.47286845]
[1727825719045,0.001634,60956.0,60955.0,0.45886845]
[1727825719246,0.00120664,60956.0,60955.0,0.45886845]
[1727825719912,0.00120664,60956.0,60955.0,0.45686845]
[1727825720351,0.00120664,60956.0,60955.0,0.47086845]
[1727825720561,0.00120664,60956.0,60955.0,0.47286845]
[1727825720779,0.00120664,60956.0,60955.0,0.45886845]
[1727825721054,0.00120664,60956.0,60955.0,0.47286845]
[1727825722846,0.00120664,60956.0,60955.0,0.44786845]
[1727825726915,0.00120664,60956.0,60955.0,0.94086566]
[1727825727161,0.00120664,60956.0,60955.0,0.64946845]
[1727825727387,0.00120664,60956.0,60955.0,0.83631468]
[1727825727821,0.00120664,60956.0,60955.0,0.82231468]
[1727825728062,0.00120664,60956.0,60955.0,0.83631468]
[1727825729290,0.00120664,60956.0,60955.0,0.82231468]
[1727825729750,0.00120664,60956.0,60955.0,0.83631468]
[1727825730218,0.00120664,60956.0,60955.0,0.82231468]
[1727825730431,0.00120664,60956.0,60955.0,0.83631468]
[1727825736506,0.00120664,60956.0,60955.0,0.75311468]
[1727825736823,0.00120664,60956.0,60955.0,0.75111468]
[1727825737041,0.00120664,60956.0,60955.0,0.75311468]
[1727825737473,0.00120664,60956.0,60955.0,0.34786845]
[1727825737691,0.00120664,60956.0,60955.0,0.5940223]
[1727825737910,0.00120664,60956.0,60955.0,0.34786845]
[1727825738139,0.00120664,60956.0,60955.0,0.34986845]
[1727825738587,0.00120664,60956.0,60955.0,0.34786845]
[1727825738834,0.00120664,60956.0,60955.0,0.44786845]
[1727825739074,0.00120664,60956.0,60955.0,0.47086845]
[1727825739292,0.00120664,60956.0,60955.0,0.47286845]
[1727825739722,0.00120664,60956.0,60955.0,0.47086845]
[1727825741084,0.00120664,60956.0,60955.0,0.145244]
[1727825741331,0.05105812,60956.0,60955.0,0.145244]
[1727825741784,0.15923832,60956.0,60955.0,0.145244]
[1727825742042,0.15923832,60956.0,60955.0,0.131244]
[1727825742460,0.25693832,60956.0,60954.0,0.001636]
[1727825742622,0.18964148,60956.0,60955.0,0.140244]
[1727825742900,0.38816951,60956.0,60955.0,0.009]
[1727825743057,0.31056951,60956.0,60954.0,0.001636]
[1727825743269,0.14632677,60955.0,60954.0,0.001636]
[1727825743599,0.14478603,60955.0,60954.0,0.132882]
[1727825743818,0.15792087,60955.0,60954.0,0.132882]
[1727825744255,0.10981086,60955.0,60954.0,0.132882]
[1727825744466,0.09667602,60955.0,60954.0,0.132882]
[1727825745079,0.09667602,60955.0,60954.0,0.133882]
[1727825745508,0.09667602,60955.0,60954.0,0.132882]
[1727825745745,0.09667602,60955.0,60954.0,0.141882]
[1727825746194,0.00120664,60956.0,60954.0,0.17533045]
[1727825746423,0.00120664,60956.0,60955.0,0.58778468]
[1727825746680,0.00120664,60956.0,60955.0,0.64371468]
[1727825747581,0.00120664,60956.0,60955.0,0.64571468]
[1727825749008,0.00120664,60956.0,60955.0,0.69960434]
[1727825749226,0.00120664,60956.0,60955.0,0.74391468]
[1727825749719,0.00120664,60956.0,60955.0,0.75791468]
[1727825751046,0.00120664,60956.0,60955.0,0.74991468]
[1727825751502,0.00220664,60956.0,60955.0,0.76291468]
[1727825751959,0.00220664,60956.0,60955.0,0.74891468]
[1727825752199,0.00120664,60956.0,60955.0,0.73591468]
[1727825752424,0.00120664,60956.0,60955.0,0.74991468]
[1727825752858,0.00120664,60956.0,60955.0,0.73591468]
[1727825753755,0.00220664,60956.0,60955.0,0.74991468]
[1727825753960,0.00220664,60956.0,60955.0,0.76391468]
[1727825760325,0.00220664,60956.0,60955.0,0.66371468]
[1727825760543,0.00220664,60956.0,60955.0,0.45386845]
[1727825761670,0.00120664,60956.0,60955.0,0.43986845]
[1727825761871,0.00220664,60956.0,60955.0,0.47686845]
[1727825762305,0.00220664,60956.0,60955.0,0.46286845]
[1727825762996,0.00220664,60956.0,60955.0,0.43931645]
[1727825763998,0.00220664,60956.0,60955.0,0.45331645]
[1727825764470,0.00220664,60956.0,60955.0,0.31131645]
[1727825764718,0.09877872,60956.0,60955.0,0.113692]
[1727825764962,0.1292948,60956.0,60955.0,0.127692]
[1727825765177,0.15970136,60956.0,60955.0,0.127692]
[1727825765660,0.15970136,60956.0,60955.0,0.113692]
[1727825766118,0.15970136,60956.0,60955.0,0.120692]
[1727825766833,0.14140468,60956.0,60955.0,0.106692]
[1727825767047,0.14240468,60956.0,60955.0,0.118692]
[1727825767350,0.14140468,60956.0,60955.0,0.099692]
[1727825767573,0.14140468,60956.0,60955.0,0.118692]
[1727825767798,0.14240468,60956.0,60955.0,0.118692]
[1727825768030,0.14240468,60956.0,60955.0,0.120328]
[1727825770637,0.1118886,60956.0,60955.0,0.120328]
[1727825771530,0.0343886,60956.0,60955.0,0.120328]
[1727825771746,0.02127872,60956.0,60955.0,0.120328]
[1727825771956,0.00220664,60956.0,60955.0,0.120328]
[1727825772184,0.00220664,60956.0,60955.0,0.28502245]
[1727825772399,0.00220664,60956.0,60955.0,0.31795245]
[1727825772646,0.00220664,60956.0,60955.0,0.53915245]
[1727825772848,0.00220664,60956.0,60955.0,0.50622245]
[1727825773524,0.00120664,60956.0,60955.0,0.52715245]
[1727825773777,0.00220664,60956.0,60955.0,0.54115245]
[1727825773993,0.00120664,60956.0,60955.0,0.52515245]
[1727825774212,0.00120664,60956.0,60955.0,0.53215245]
[1727825774434,0.00220664,60956.0,60955.0,0.54615245]
[1727825774657,0.00220664,60956.0,60955.0,0.53915245]
[1727825774891,0.00220664,60956.0,60955.0,0.54115245]
[1727825775104,0.00220664,60956.0,60955.0,0.55515245]
[1727825775324,0.00220664,60956.0,60955.0,0.63395245]
[1727825775584,0.00220664,60956.0,60955.0,0.61995245]
[1727825775794,0.00220664,60956.0,60955.0,0.63395245]
[1727825776468,0.00120664,60956.0,60955.0,0.61995245]
[1727825776684,0.0497753,60968.0,60967.0,0.231218]
[1727825776908,0.0497753,60968.0,60967.0,0.55021834]
[1727825777127,0.24615385,60974.0,60973.0,0.131205]
[1727825777377,0.02570657,60975.0,60974.0,0.131203]
[1727825778063,0.04466041,60975.0,60974.0,0.131203]
[1727825778268,0.02570657,60975.0,60974.0,0.131203]
[1727825778963,0.02570657,60975.0,60974.0,0.144203]
[1727825780060,0.02570657,60975.0,60974.0,0.158203]
[1727825780273,0.04467535,60975.0,60974.0,0.158203]
[1727825781822,0.01896878,60975.0,60974.0,0.158203]
[1727825782743,0.0759,60980.0,60975.0,0.131201]
[1727825783183,0.02065372,60976.0,60975.0,0.131201]
[1727825783835,0.02065372,60976.0,60975.0,0.143201]
[1727825784276,0.02065372,60976.0,60975.0,0.157201]
[1727825785143,0.001634,60976.0,60975.0,0.157201]
[1727825785396,0.001634,60976.0,60975.0,0.34404723]
[1727825786025,0.001634,60976.0,60975.0,0.157201]
[1727825786680,0.077534,60976.0,60975.0,0.157201]
[1727825786900,0.09656218,60976.0,60975.0,0.157201]
[1727825787123,0.10851714,60976.0,60975.0,0.157201]
[1727825787793,0.09656218,60976.0,60975.0,0.157201]
[1727825789542,0.09654141,60976.0,60975.0,0.157201]
[1727825790475,0.34464389,60976.0,60975.0,0.026]
[1727825790752,0.40753419,60976.0,60975.0,0.026]
[1727825790968,0.45697874,60976.0,60975.0,0.026]
[1727825791195,0.4742946,60976.0,60975.0,0.026]
[1727825791432,0.0824,60972.0,60969.0,0.131213]
[1727825791665,0.0824,60972.0,60967.0,0.24615385]
[1727825791666,0.06830115,60971.0,60970.0,0.131211]
[1727825791913,0.06830115,60971.0,60966.0,0.262437]
[1727825791914,0.08023716,60971.0,60966.0,0.262437]
[1727825792169,0.06676041,60970.0,60967.0,0.131218]
[1727825792392,0.02055787,60969.0,60967.0,0.131218]
[1727825792622,0.01901713,60968.0,60967.0,0.131218]
[1727825793217,0.06138056,60968.0,60967.0,0.131218]
[1727825793882,0.06138056,60968.0,60967.0,0.011]
[1727825794100,0.57179619,60968.0,60967.0,0.011]
[1727825794573,0.57179619,60968.0,60967.0,0.025]
[1727825794828,0.57179619,60968.0,60967.0,0.014]
[1727825795011,0.131223,60965.0,60962.0,0.24615385]
[1727825795269,0.19956469,60964.0,60962.0,0.24615385]
[1727825795498,0.14919795,60963.0,60962.0,0.24615385]
[1727825795738,0.10298119,60963.0,60961.0,0.131231]
[1727825795966,0.01904045,60962.0,60961.0,0.131231]
[1727825796164,0.07865685,60962.0,60961.0,0.131231]
[1727825796865,0.07865685,60962.0,60961.0,0.134231]
[1727825797319,0.07865685,60962.0,60961.0,0.131231]
[1727825797751,0.07865685,60962.0,60961.0,0.143231]
[1727825797941,0.10436805,60962.0,60961.0,0.143231]
[1727825799260,0.104419,60962.0,60961.0,0.143231]
[1727825802586,0.05483481,60962.0,60961.0,0.143231]
[1727825802799,0.05637555,60962.0,60961.0,0.143231]
[1727825803003,0.10589996,60962.0,60961.0,0.143231]
[1727825803644,0.10589996,60962.0,60961.0,0.012]